bitfinex/quotes_BTCUSD_20250901
["timestamp","ask_amount","ask_price","bid_price","bid_amount"]
[1756688562403,0.00087444,108470.0,108460.0,1.94133626]
[1756688562792,0.00087444,108470.0,108460.0,1.95073483]
[1756688564766,0.00087444,108470.0,108460.0,1.95273483]
[1756688565172,0.00087444,108470.0,108460.0,2.34273483]
[1756688565600,0.00087444,108470.0,108460.0,2.34573483]
[1756688566232,0.0004,108480.0,108470.0,0.18438277]
[1756688566439,0.0004,108480.0,108470.0,0.85166544]
[1756688566645,0.0004,108480.0,108470.0,0.85382544]
[1756688566848,0.0004,108480.0,108470.0,1.25382544]
[1756688567862,0.0004,108490.0,108480.0,0.73436578]
[1756688568003,0.00054225,108490.0,108480.0,1.40163973]
[1756688568210,0.00054225,108490.0,108480.0,1.40379973]
[1756688568459,0.00054225,108490.0,108480.0,1.80379973]
[1756688568882,0.00054225,108490.0,108480.0,1.83149473]
[1756688569543,0.00253225,108490.0,108480.0,1.67109473]
[1756688569774,0.00253225,108490.0,108480.0,1.83137473]
[1756688569977,0.00253225,108490.0,108480.0,1.32887315]
[1756688570192,0.00253225,108490.0,108480.0,1.48615315]
[1756688570811,0.00253225,108490.0,108480.0,1.32887315]
[1756688571007,0.00253225,108490.0,108480.0,1.48615315]
[1756688571420,0.00054225,108490.0,108480.0,1.48911315]
[1756688571623,0.00265225,108490.0,108480.0,1.12887315]
[1756688571828,0.00574225,108490.0,108480.0,1.28399315]
[1756688574087,0.00574225,108490.0,108480.0,0.92671315]
[1756688574289,0.53531261,108490.0,108480.0,0.60622001]
[1756688574491,0.00574225,108490.0,108480.0,0.63034579]
[1756688574863,0.00574225,108490.0,108480.0,0.78758579]
[1756688575495,0.00265225,108490.0,108480.0,0.78758579]
[1756688575703,0.00265225,108490.0,108480.0,0.78663579]
[1756688575917,0.00574225,108490.0,108480.0,0.78458579]
[1756688576758,0.00574225,108490.0,108480.0,0.62734579]
[1756688576959,0.19009103,108490.0,108480.0,0.78510579]
[1756688577173,0.00574225,108490.0,108480.0,0.78510579]
[1756688577585,0.19009103,108490.0,108480.0,0.78510579]
[1756688577801,0.52085112,108490.0,108480.0,0.58510579]
[1756688578005,0.52085112,108490.0,108480.0,0.78502579]
[1756688578369,0.52085112,108490.0,108480.0,1.18502579]
[1756688578756,0.52085112,108490.0,108480.0,1.02734579]
[1756688578959,0.19009103,108490.0,108480.0,0.25066001]
[1756688579163,0.52085112,108490.0,108480.0,0.43502579]
[1756688579362,0.52085112,108490.0,108480.0,0.25066001]
[1756688580078,0.52085112,108490.0,108480.0,0.09298001]
[1756688580289,0.18438277,108470.0,108460.0,0.53772325]
[1756688580550,0.52034286,108470.0,108460.0,0.43858326]
[1756688580751,0.52034286,108470.0,108460.0,0.75731067]
[1756688580956,0.52034286,108470.0,108460.0,0.3729109]
[1756688581103,0.52034286,108470.0,108460.0,0.2150309]
[1756688581285,0.52034286,108470.0,108460.0,0.3729109]
[1756688582022,0.53437502,108470.0,108460.0,0.3729109]
[1756688582822,0.53437502,108470.0,108460.0,0.1461509]
[1756688583046,0.53437502,108470.0,108460.0,0.48851067]
[1756688583273,0.53437502,108470.0,108460.0,0.3041109]
[1756688583692,0.53437502,108470.0,108460.0,0.3021109]
[1756688584304,0.53437502,108470.0,108460.0,0.48651067]
[1756688584546,0.34999225,108470.0,108460.0,0.48651067]
[1756688584780,0.0052,108470.0,108460.0,0.68651067]
[1756688584982,0.0052,108470.0,108460.0,0.68856067]
[1756688585408,0.00211,108470.0,108460.0,0.68856067]
[1756688586020,0.18747107,108480.0,108470.0,0.18438277]
[1756688586351,0.18958107,108480.0,108470.0,0.27736278]
[1756688586466,0.00211,108480.0,108470.0,0.27941278]
[1756688587475,0.18956578,108480.0,108470.0,0.09298001]
[1756688587712,0.53435803,108480.0,108470.0,0.25098001]
[1756688588118,0.53435803,108480.0,108470.0,0.25094001]
[1756688588542,0.53435803,108480.0,108470.0,0.43532278]
[1756688589114,0.53435803,108480.0,108470.0,0.25094001]
[1756688590152,0.18438277,108470.0,108460.0,0.50744468]
[1756688590508,0.53437502,108470.0,108460.0,0.29275233]
[1756688592860,0.53437502,108470.0,108460.0,0.13475233]
[1756688592993,0.53437502,108470.0,108460.0,0.29267233]
[1756688594083,0.69229502,108470.0,108460.0,0.04177232]
[1756688594378,0.18439977,108460.0,108450.0,0.15788]
[1756688594572,0.53228202,108460.0,108450.0,0.25086001]
[1756688594793,0.53439202,108460.0,108450.0,0.25086001]
[1756688595009,0.53439202,108460.0,108450.0,0.041826]
[1756688595140,0.53439202,108460.0,108450.0,0.199746]
[1756688595491,0.53439202,108460.0,108450.0,0.15792]
[1756688595756,0.18441678,108450.0,108440.0,0.15788]
[1756688595881,0.52920903,108450.0,108440.0,0.25086001]
[1756688596090,0.53440903,108450.0,108440.0,0.25086001]
[1756688596504,0.53440903,108450.0,108440.0,0.26026178]
[1756688596913,0.53440903,108450.0,108440.0,0.26073622]
[1756688598183,0.53440903,108450.0,108440.0,0.15827444]
[1756688598387,1.03216903,108450.0,108440.0,0.00047444]
[1756688598805,1.03220903,108450.0,108440.0,0.00047444]
[1756688599550,1.03220903,108450.0,108440.0,0.04275707]
[1756688599754,1.48623642,108450.0,108440.0,0.00047444]
[1756688599917,1.48619642,108450.0,108440.0,0.00047444]
[1756688600118,1.14140417,108450.0,108440.0,0.00047444]
[1756688600523,0.98364417,108450.0,108440.0,0.00047444]
[1756688600739,1.14140417,108450.0,108440.0,0.00047444]
[1756688600969,1.05310785,108450.0,108440.0,0.00047444]
[1756688601345,1.05510785,108450.0,108440.0,0.00047444]
[1756688601548,0.89734785,108450.0,108440.0,0.00047444]
[1756688601899,1.05506785,108450.0,108440.0,0.00047444]
[1756688602101,0.89734785,108450.0,108440.0,0.00047444]
[1756688602306,1.08274785,108450.0,108440.0,0.00047444]
[1756688603432,1.08074785,108450.0,108440.0,0.00047444]
[1756688603831,1.08374785,108450.0,108440.0,0.00047444]
[1756688604170,0.5812756,108450.0,108440.0,0.00047444]
[1756688604378,1.08366785,108450.0,108440.0,0.00047444]
[1756688605633,0.92606785,108450.0,108440.0,0.00047444]
[1756688605854,0.52741678,108450.0,108440.0,0.18995822]
[1756688606066,0.52453678,108450.0,108440.0,0.18995822]
[1756688606542,0.86932903,108450.0,108440.0,0.18995822]
[1756688606794,0.52241678,108450.0,108440.0,0.18995822]
[1756688607016,0.37270577,108460.0,108440.0,0.44053823]
[1756688607017,0.55993802,108460.0,108440.0,0.44053823]
[1756688607186,0.1867242,108450.0,108440.0,0.44053823]
[1756688607388,0.18441678,108450.0,108440.0,0.44053823]
[1756688607999,0.53332903,108450.0,108440.0,0.25610445]
[1756688608147,0.53332903,108450.0,108440.0,0.25314445]
[1756688608384,0.18853678,108450.0,108440.0,0.25318445]
[1756688608592,0.53332903,108450.0,108440.0,0.43761823]
[1756688610601,0.53332903,108450.0,108440.0,0.44057823]
[1756688610855,0.53120903,108450.0,108440.0,0.44057823]
[1756688611606,0.53332903,108450.0,108440.0,0.43761823]
[1756688612139,0.53332903,108450.0,108440.0,0.25318445]
[1756688612720,0.53332903,108450.0,108440.0,0.43761823]
[1756688612924,0.53120903,108450.0,108440.0,0.44057823]
[1756688613290,0.34679225,108450.0,108440.0,0.44057823]
[1756688613487,0.002,108450.0,108440.0,0.44057823]
[1756688613728,0.002,108450.0,108440.0,0.64057823]
[1756688614115,0.002,108450.0,108440.0,0.71145823]
[1756688614294,0.002,108450.0,108440.0,0.77713059]
[1756688616316,0.53839415,108470.0,108460.0,0.18439977]
[1756688616515,0.54354415,108470.0,108460.0,0.43477978]
[1756688617187,0.54354415,108470.0,108460.0,0.44389541]
[1756688617398,0.54354415,108470.0,108460.0,0.25949564]
[1756688618031,0.54140631,108480.0,108460.0,0.44894541]
[1756688618232,0.18438277,108470.0,108460.0,0.44894541]
[1756688619009,0.69876631,108480.0,108460.0,0.44894541]
[1756688619228,0.18438277,108470.0,108460.0,0.44894541]
[1756688619437,0.69876631,108480.0,108460.0,0.44894541]
[1756688619645,1.03876631,108480.0,108470.0,0.09298001]
[1756688619844,1.04088631,108480.0,108470.0,0.09298001]
[1756688620115,1.02704662,108480.0,108470.0,0.09298001]
[1756688620913,1.35999918,108480.0,108470.0,0.09298001]
[1756688624067,1.02904662,108480.0,108470.0,0.09298001]
[1756688626189,1.35999918,108480.0,108470.0,0.09298001]
[1756688635109,0.18439977,108460.0,108450.0,0.46567236]
[1756688635227,0.18441678,108450.0,108440.0,0.0661468]
[1756688635426,0.18657678,108450.0,108440.0,0.31666319]
[1756688635644,0.8514819,108450.0,108440.0,0.15934319]
[1756688636037,0.8514819,108450.0,108440.0,0.15779444]
[1756688636249,0.8514819,108450.0,108440.0,0.00047444]
[1756688636838,1.0088019,108450.0,108440.0,0.00047444]
[1756688637040,1.0088019,108450.0,108440.0,0.00247444]
[1756688637499,0.8463219,108450.0,108440.0,0.00248444]
[1756688637709,0.34373678,108450.0,108440.0,0.00248444]
[1756688637915,0.67684934,108450.0,108440.0,0.00248444]
[1756688638129,0.67984934,108450.0,108440.0,0.00047444]
[1756688640331,0.18641678,108450.0,108440.0,0.42960701]
[1756688640533,0.18641678,108450.0,108440.0,0.61404079]
[1756688640728,0.002,108450.0,108440.0,0.61404079]
[1756688640990,0.002,108450.0,108440.0,0.87992953]
[1756688641424,0.002,108450.0,108440.0,1.08492079]
[1756688641636,0.002,108450.0,108440.0,1.15078872]
[1756688641840,0.002,108450.0,108440.0,1.08492079]
[1756688642040,0.002,108450.0,108440.0,0.75396823]
[1756688642260,0.002,108450.0,108440.0,1.08492079]
[1756688642676,0.18440009,108460.0,108450.0,0.18440571]
[1756688642919,0.18656009,108460.0,108450.0,0.15884662]
[1756688643138,0.52051265,108460.0,108450.0,0.06586661]
[1756688643348,0.18441678,108450.0,108440.0,0.22366105]
[1756688643561,0.18741678,108450.0,108440.0,0.15932106]
[1756688643767,0.67784934,108450.0,108440.0,0.16132106]
[1756688643986,0.67784934,108450.0,108440.0,0.09345445]
[1756688644190,0.67784934,108450.0,108440.0,0.00047444]
[1756688645710,0.34689678,108450.0,108440.0,0.00047444]
[1756688645824,0.67784934,108450.0,108440.0,0.00047444]
[1756688646035,0.18957678,108450.0,108440.0,0.00147444]
[1756688646289,0.18441678,108450.0,108440.0,0.18791822]
[1756688646501,0.027715,108460.0,108440.0,0.81504079]
[1756688646712,0.18670719,108460.0,108450.0,0.77116455]
[1756688647046,0.18439977,108460.0,108450.0,0.77086935]
[1756688647247,0.18439977,108460.0,108450.0,0.43991679]
[1756688647403,0.18655977,108460.0,108450.0,0.43672679]
[1756688647856,0.18539977,108460.0,108450.0,0.43672679]
[1756688648056,0.001,108460.0,108450.0,0.77086935]
[1756688648231,0.001,108460.0,108450.0,0.83673596]
[1756688648434,0.18539977,108460.0,108450.0,0.83673596]
[1756688648706,0.19055977,108460.0,108450.0,0.15884662]
[1756688648926,0.19055977,108460.0,108450.0,0.31616662]
[1756688649566,0.19055977,108460.0,108450.0,0.25030001]
[1756688649768,0.18955977,108460.0,108450.0,0.25030001]
[1756688650163,0.18955977,108460.0,108450.0,0.31616662]
[1756688650164,0.19055977,108460.0,108450.0,0.31616662]
[1756688650377,0.18955977,108460.0,108450.0,0.31616662]
[1756688650539,0.18955977,108460.0,108450.0,0.15884662]
[1756688650754,0.55531535,108460.0,108450.0,0.001]
[1756688651152,0.92303035,108460.0,108450.0,0.001]
[1756688651583,0.18441678,108450.0,108440.0,0.49086105]
[1756688651784,0.18741678,108450.0,108440.0,0.49086105]
[1756688651967,0.18957678,108450.0,108440.0,0.49086105]
[1756688652844,0.18957678,108450.0,108440.0,0.49606105]
[1756688652845,0.18441678,108450.0,108440.0,0.49606105]
[1756688653216,0.18441678,108450.0,108440.0,0.77347484]
[1756688653418,0.18657678,108450.0,108440.0,0.58585106]
[1756688653622,0.18657678,108450.0,108440.0,0.58685106]
[1756688654536,0.18657678,108450.0,108440.0,0.31965106]
[1756688654764,0.53439354,108450.0,108440.0,0.06734105]
[1756688655017,0.87439354,108450.0,108440.0,0.15879444]
[1756688655229,0.87439354,108450.0,108440.0,0.00147444]
[1756688655443,0.98362868,108450.0,108440.0,0.00147444]
[1756688655672,0.89533236,108450.0,108440.0,0.00147444]
[1756688656088,0.89533236,108450.0,108440.0,0.00047444]
[1756688656474,0.89633236,108450.0,108440.0,0.00047444]
[1756688656965,0.92405136,108450.0,108440.0,0.00047444]
[1756688657776,1.08137136,108450.0,108440.0,0.00047444]
[1756688661079,0.7365546,108450.0,108440.0,0.00047444]
[1756688661299,1.08137136,108450.0,108440.0,0.00047444]
[1756688662675,0.71561578,108450.0,108440.0,0.00264444]
[1756688662897,0.71261578,108450.0,108440.0,0.00264444]
[1756688663274,0.55313578,108450.0,108440.0,0.00574444]
[1756688663479,0.52541678,108450.0,108440.0,0.00574444]
[1756688663701,0.52541678,108450.0,108440.0,0.00047444]
[1756688663702,0.53064678,108450.0,108440.0,0.00047444]
[1756688663892,0.87546354,108450.0,108440.0,0.00047444]
[1756688664099,0.89640236,108450.0,108440.0,0.00047444]
[1756688664683,0.5515856,108450.0,108440.0,0.00047444]
[1756688665374,0.92412036,108450.0,108440.0,0.00047444]
[1756688666947,0.93342065,108450.0,108440.0,0.00047444]
[1756688671505,0.5793036,108450.0,108440.0,0.00047444]
[1756688671705,1.08144036,108450.0,108440.0,0.00047444]
[1756688672113,1.06777512,108450.0,108440.0,0.00047444]
[1756688672505,0.7366236,108450.0,108440.0,0.00047444]
[1756688672705,0.5762236,108450.0,108440.0,0.00264444]
[1756688673001,0.7335436,108450.0,108440.0,0.00264444]
[1756688673876,0.5762236,108450.0,108440.0,0.00264444]
[1756688674036,0.55313478,108450.0,108440.0,0.00574444]
[1756688674822,0.52541678,108450.0,108440.0,0.00574444]
[1756688676710,0.52756678,108450.0,108440.0,0.00264444]
[1756688676883,0.52541678,108450.0,108440.0,0.00264444]
[1756688677083,0.52756678,108450.0,108440.0,0.00264444]
[1756688678491,0.52541678,108450.0,108440.0,0.00574444]
[1756688679057,0.52756678,108450.0,108440.0,0.00574444]
[1756688679615,0.52756678,108450.0,108440.0,0.07161105]
[1756688680161,0.52756678,108450.0,108440.0,0.06851105]
[1756688680360,0.53064678,108450.0,108440.0,0.06634105]
[1756688680561,0.88273712,108450.0,108440.0,0.00047444]
[1756688680763,0.97103344,108450.0,108440.0,0.00047444]
[1756688680966,0.99875144,108450.0,108440.0,0.00047444]
[1756688681231,0.91045512,108450.0,108440.0,0.00047444]
[1756688681891,0.5793036,108450.0,108440.0,0.00047444]
[1756688682095,1.06777512,108450.0,108440.0,0.00047444]
[1756688683088,0.7366236,108450.0,108440.0,0.00047444]
[1756688683293,1.06777512,108450.0,108440.0,0.00047444]
[1756688684566,0.90737512,108450.0,108440.0,0.00264444]
[1756688684771,0.7335436,108450.0,108440.0,0.00264444]
[1756688684982,1.06777512,108450.0,108440.0,0.00047444]
[1756688685340,0.7366236,108450.0,108440.0,0.00047444]
[1756688685539,1.06777512,108450.0,108440.0,0.00047444]
[1756688688235,0.5793036,108450.0,108440.0,0.00047444]
[1756688688442,0.71045478,108450.0,108440.0,0.00264444]
[1756688688642,0.71260478,108450.0,108440.0,0.00264444]
[1756688688850,1.0468363,108450.0,108440.0,0.00047444]
[1756688689778,0.71045478,108450.0,108440.0,0.00574444]
[1756688689983,0.71256478,108450.0,108440.0,0.00264444]
[1756688690238,1.0467763,108450.0,108440.0,0.00047444]
[1756688690691,0.71562478,108450.0,108440.0,0.00047444]
[1756688690899,1.0467763,108450.0,108440.0,0.00047444]
[1756688691428,1.0467763,108450.0,108440.0,0.00246444]
[1756688691848,1.0467763,108450.0,108440.0,0.00047444]
[1756688694024,1.48716296,108450.0,108440.0,0.00047444]
[1756688694230,1.61145142,108450.0,108440.0,0.00047444]
[1756688695770,1.58014297,108450.0,108440.0,0.00047444]
[1756688695978,1.42282297,108450.0,108440.0,0.00047444]
[1756688696194,1.16069513,108450.0,108440.0,0.00047444]
[1756688696903,1.00337513,108450.0,108440.0,0.00047444]
[1756688697109,1.49184665,108450.0,108440.0,0.00047444]
[1756688698312,1.00337513,108450.0,108440.0,0.00047444]
[1756688698515,0.91039512,108450.0,108440.0,0.00047444]
[1756688698687,0.91039512,108450.0,108440.0,0.00246444]
[1756688698891,1.06771512,108450.0,108440.0,0.00047444]
[1756688700307,0.91039512,108450.0,108440.0,0.00047444]
[1756688700579,1.06465512,108450.0,108440.0,0.00246444]
[1756688700803,1.06465512,108450.0,108440.0,0.00047444]
[1756688700804,1.06771512,108450.0,108440.0,0.00047444]
[1756688701852,0.5761836,108450.0,108440.0,0.00246444]
[1756688702067,0.7313936,108450.0,108440.0,0.00555444]
[1756688702481,1.06771512,108450.0,108440.0,0.00246444]
[1756688702722,1.06771512,108450.0,108440.0,0.00047444]
[1756688703361,0.71045478,108450.0,108440.0,0.00555444]
[1756688703578,0.55313478,108450.0,108440.0,0.00555444]
[1756688703762,0.71045478,108450.0,108440.0,0.00555444]
[1756688704350,0.71256478,108450.0,108440.0,0.00555444]
[1756688704960,0.71256478,108450.0,108440.0,0.00246444]
[1756688705554,1.0467763,108450.0,108440.0,0.00047444]
[1756688705765,1.15601144,108450.0,108440.0,0.00047444]
[1756688705968,1.48716296,108450.0,108440.0,0.00047444]
[1756688706172,1.58014297,108450.0,108440.0,0.00047444]
[1756688708131,1.61145142,108450.0,108440.0,0.00047444]
[1756688708739,1.61045142,108450.0,108440.0,0.00047444]
[1756688709114,1.61245142,108450.0,108440.0,0.00047444]
[1756688709345,0.95014838,108450.0,108440.0,0.00047444]
[1756688709533,1.61245142,108450.0,108440.0,0.00047444]
[1756688709742,0.87654113,108430.0,108420.0,0.0721143]
[1756688709900,1.28605746,108430.0,108420.0,0.0721143]
[1756688710106,1.23117959,108430.0,108420.0,0.0721143]
[1756688710272,1.23423959,108430.0,108420.0,0.0721143]
[1756688710472,0.52448482,108410.0,108400.0,0.0721143]
[1756688710757,1.01295634,108410.0,108400.0,0.0721143]
[1756688710958,1.01295634,108410.0,108400.0,0.0741043]
[1756688711280,1.01295634,108410.0,108400.0,0.0771943]
[1756688711488,0.52448482,108410.0,108400.0,0.00508]
[1756688711704,1.01295634,108410.0,108400.0,0.00512744]
[1756688711907,1.01295634,108410.0,108400.0,0.04731348]
[1756688712416,0.68180482,108410.0,108400.0,0.04731348]
[1756688712780,0.68391482,108410.0,108400.0,0.04622348]
[1756688713027,0.52448482,108410.0,108400.0,0.04622348]
[1756688713238,0.68180482,108410.0,108400.0,0.04931348]
[1756688713850,0.70953282,108410.0,108400.0,0.04931348]
[1756688714678,0.71164282,108410.0,108400.0,0.04931348]
[1756688715235,1.04279434,108410.0,108400.0,0.04622348]
[1756688716109,0.70953282,108410.0,108400.0,0.04931348]
[1756688716345,0.52448482,108410.0,108400.0,0.04931348]
[1756688716563,1.09756971,108410.0,108400.0,0.00204744]
[1756688716769,1.03906516,108410.0,108400.0,0.00204744]
[1756688717122,1.06679516,108410.0,108400.0,0.00204744]
[1756688718200,0.57832364,108410.0,108400.0,0.00204744]
[1756688718407,1.06679516,108410.0,108400.0,0.00204744]
[1756688718605,1.06679516,108410.0,108400.0,4.744e-05]
[1756688718808,1.15509148,108410.0,108400.0,0.00104744]
[1756688718997,1.22601148,108410.0,108400.0,0.00104744]
[1756688720325,1.06869148,108410.0,108400.0,0.00104744]
[1756688720525,1.22601148,108410.0,108400.0,0.00104744]
[1756688720957,0.89485996,108410.0,108400.0,0.00104744]
[1756688721152,1.06869148,108410.0,108400.0,0.00104744]
[1756688721332,1.22601148,108410.0,108400.0,0.00104744]
[1756688722398,1.06869148,108410.0,108400.0,0.00104744]
[1756688722593,1.22605148,108410.0,108400.0,0.00104744]
[1756688722758,1.13469516,108410.0,108400.0,0.00315744]
[1756688723162,1.13784516,108410.0,108400.0,0.00315744]
[1756688723546,1.13469516,108410.0,108400.0,0.00315744]
[1756688723771,0.97733516,108410.0,108400.0,0.00315744]
[1756688723972,1.13258516,108410.0,108400.0,0.00631744]
[1756688724218,1.13461516,108410.0,108400.0,0.00315744]
[1756688724967,1.13461516,108410.0,108400.0,0.00631744]
[1756688724968,0.55221482,108410.0,108400.0,0.00631744]
[1756688725176,0.68184482,108410.0,108400.0,0.00631744]
[1756688726217,0.52448482,108410.0,108400.0,0.00631744]
[1756688726392,0.68184482,108410.0,108400.0,0.00631744]
[1756688726805,0.52448482,108410.0,108400.0,0.00631744]
[1756688726965,0.34184482,108410.0,108400.0,0.52427707]
[1756688727162,0.18448482,108410.0,108400.0,0.61495081]
[1756688727551,0.34184313,108420.0,108400.0,0.61495081]
[1756688727678,0.18448482,108410.0,108400.0,0.61179081]
[1756688727911,0.18448482,108410.0,108400.0,0.76915081]
[1756688728128,0.34184313,108420.0,108400.0,0.76815081]
[1756688728314,0.18448313,108420.0,108410.0,0.18764482]
[1756688728515,0.18448313,108420.0,108410.0,0.18975482]
[1756688729022,0.56139732,108430.0,108410.0,0.61388635]
[1756688729251,0.35103332,108430.0,108420.0,0.00316]
[1756688729444,0.69103332,108430.0,108420.0,0.00316]
[1756688729644,0.69103332,108430.0,108420.0,0.00527]
[1756688730274,0.52445079,108430.0,108420.0,0.52088933]
[1756688730486,0.18445079,108430.0,108420.0,0.61386934]
[1756688730901,0.18445079,108430.0,108420.0,0.65448129]
[1756688731104,0.18445079,108430.0,108420.0,0.32332977]
[1756688731309,0.18445079,108430.0,108420.0,0.13886196]
[1756688731508,0.18648079,108430.0,108420.0,0.13570196]
[1756688731710,0.18648079,108430.0,108420.0,0.13670196]
[1756688732279,0.18648079,108430.0,108420.0,0.13986196]
[1756688732280,0.18445079,108430.0,108420.0,0.13986196]
[1756688732720,0.18445079,108430.0,108420.0,0.14899693]
[1756688733233,0.18445079,108430.0,108420.0,0.32432977]
[1756688733443,0.18445079,108430.0,108420.0,0.65548129]
[1756688733645,0.52444918,108440.0,108420.0,0.65548129]
[1756688733646,0.68176918,108440.0,108420.0,0.65548129]
[1756688733853,0.00230742,108430.0,108420.0,0.32116977]
[1756688734057,0.18675821,108430.0,108420.0,0.32116977]
[1756688734271,0.18445079,108430.0,108420.0,0.33037435]
[1756688734483,0.18445079,108430.0,108420.0,0.33353435]
[1756688735094,0.18445079,108430.0,108420.0,0.33253435]
[1756688735312,0.52444918,108440.0,108430.0,0.18445079]
[1756688735572,0.027719,108450.0,108430.0,0.77117232]
[1756688735802,0.18441678,108450.0,108440.0,0.09614001]
[1756688736045,0.18441678,108450.0,108440.0,0.28268379]
[1756688737275,0.18489093,108450.0,108440.0,0.28268379]
[1756688738575,0.18489093,108450.0,108440.0,0.28468379]
[1756688738812,0.00047415,108450.0,108440.0,0.28468379]
[1756688739208,0.00047415,108450.0,108440.0,0.62950416]
[1756688739803,0.00047415,108450.0,108440.0,0.78678416]
[1756688740380,0.00047415,108450.0,108440.0,0.44196379]
[1756688741462,0.00047415,108450.0,108440.0,0.78678416]
[1756688741668,0.00047415,108450.0,108440.0,0.62950416]
[1756688741874,0.00047415,108450.0,108440.0,0.82950416]
[1756688742076,0.00047415,108450.0,108440.0,0.98678416]
[1756688743164,0.00047415,108450.0,108440.0,1.38678416]
[1756688743388,0.00047415,108450.0,108440.0,1.22950416]
[1756688743725,0.00047415,108450.0,108440.0,1.38678416]
[1756688745585,0.00047415,108450.0,108440.0,1.04196379]
[1756688745777,0.00047415,108450.0,108440.0,1.38678416]
[1756688746982,0.00250415,108450.0,108440.0,1.03880379]
[1756688747208,0.00047415,108450.0,108440.0,1.04196379]
[1756688747847,0.00047415,108450.0,108440.0,0.98678416]
[1756688749554,0.00047415,108450.0,108440.0,0.98674416]
[1756688751656,0.00047415,108450.0,108440.0,1.33156453]
[1756688751858,0.19731075,108490.0,108470.0,0.18437475]
[1756688752058,0.1866732,108480.0,108470.0,0.62517513]
[1756688752260,0.18436578,108480.0,108470.0,0.43958476]
[1756688752460,0.18436578,108480.0,108470.0,0.78440513]
[1756688752674,0.194223,108490.0,108480.0,0.18436578]
[1756688753033,0.00054225,108490.0,108480.0,0.53117615]
[1756688753244,0.00054225,108490.0,108480.0,0.62715616]
[1756688753433,0.18489103,108490.0,108480.0,0.62715616]
[1756688753576,0.18489103,108490.0,108480.0,0.63620815]
[1756688753792,0.18489103,108490.0,108480.0,0.29138778]
[1756688753991,0.18489103,108490.0,108480.0,0.33289079]
[1756688755031,0.18489103,108490.0,108480.0,0.33389079]
[1756688755702,0.18701103,108490.0,108480.0,0.33089079]
[1756688756659,0.18489103,108490.0,108480.0,0.33089079]
[1756688756811,0.18489103,108490.0,108480.0,0.33389079]
[1756688757248,0.18701103,108490.0,108480.0,0.33089079]
[1756688757821,0.18701103,108490.0,108480.0,0.48809079]
[1756688758031,0.00054225,108490.0,108480.0,0.49109079]
[1756688758267,0.00054225,108490.0,108480.0,0.96197079]
[1756688758477,0.00054225,108490.0,108480.0,1.30679116]
[1756688758676,0.00054225,108490.0,108480.0,1.14959116]
[1756688758900,0.00054225,108490.0,108480.0,0.96197079]
[1756688759096,0.00054225,108490.0,108480.0,1.30679116]
[1756688759477,0.00266225,108490.0,108480.0,0.95897079]
[1756688759924,0.19024103,108490.0,108480.0,0.79978079]
[1756688760125,0.18701103,108490.0,108480.0,0.95897079]
[1756688760511,0.19024103,108490.0,108480.0,0.40636302]
[1756688760713,0.52103581,108490.0,108480.0,0.19970301]
[1756688761114,0.19024103,108490.0,108480.0,0.19970301]
[1756688761499,0.19024103,108490.0,108480.0,0.20881012]
[1756688761882,0.19024103,108490.0,108480.0,0.20777012]
[1756688762101,0.19024103,108490.0,108480.0,0.19866301]
[1756688762310,0.19024103,108490.0,108480.0,0.19966301]
[1756688762518,0.88197463,108490.0,108480.0,0.04250301]
[1756688762933,0.99798095,108490.0,108480.0,0.001]
[1756688763902,1.15514095,108490.0,108480.0,0.001]
[1756688764100,0.5453046,108480.0,108470.0,0.04202178]
[1756688764307,0.18438277,108470.0,108460.0,0.0721143]
[1756688764515,0.18973277,108470.0,108460.0,0.0721143]
[1756688764703,0.18441678,108450.0,108440.0,0.15202095]
[1756688764904,0.18441678,108450.0,108440.0,0.17412096]
[1756688764905,0.18976678,108450.0,108440.0,0.17412096]
[1756688765121,0.18976678,108450.0,108440.0,0.25014001]
[1756688766553,0.18976678,108450.0,108440.0,0.04153909]
[1756688766743,0.18976678,108450.0,108440.0,0.19869909]
[1756688766972,0.18443378,108440.0,108430.0,0.00915006]
[1756688767108,0.18443378,108440.0,108430.0,0.44421501]
[1756688767318,0.18443378,108440.0,108430.0,0.43705495]
[1756688767922,0.18764678,108450.0,108430.0,0.44005495]
[1756688768124,0.1867412,108440.0,108430.0,0.44205495]
[1756688768321,0.18441678,108450.0,108430.0,0.78683458]
[1756688768528,0.00230742,108440.0,108430.0,0.78483458]
[1756688768733,0.18441678,108450.0,108440.0,0.18443378]
[1756688768986,0.18441678,108450.0,108440.0,0.62718342]
[1756688769319,0.18653678,108450.0,108440.0,0.43974964]
[1756688769514,0.18653678,108450.0,108440.0,0.09497001]
[1756688769840,0.18653678,108450.0,108440.0,0.27940379]
[1756688770178,0.18653678,108450.0,108440.0,0.32026579]
[1756688770383,0.53686507,108460.0,108440.0,0.32326579]
[1756688770580,0.53686507,108460.0,108450.0,0.15716]
[1756688770809,0.53898507,108460.0,108450.0,0.15716]
[1756688771663,0.53998507,108460.0,108450.0,0.15716]
[1756688771872,0.53898507,108460.0,108450.0,0.15716]
[1756688772308,0.18441678,108450.0,108440.0,0.13384201]
[1756688772536,0.18764678,108450.0,108440.0,0.040862]
[1756688772698,0.53454641,108450.0,108440.0,0.040862]
[1756688772883,0.18443378,108440.0,108430.0,0.16668244]
[1756688773106,0.18443378,108440.0,108430.0,0.44411324]
[1756688773310,0.18443378,108440.0,108430.0,0.44910324]
[1756688773519,0.18978378,108440.0,108430.0,0.25966245]
[1756688773899,0.18978378,108440.0,108430.0,0.26165245]
[1756688774119,0.18655378,108440.0,108430.0,0.44610324]
[1756688774496,0.18655378,108440.0,108430.0,0.26165245]
[1756688774936,0.18655378,108440.0,108430.0,0.26365245]
[1756688776290,0.53456341,108440.0,108430.0,0.00247415]
[1756688776510,0.71266223,108440.0,108430.0,0.00247415]
[1756688777262,0.71266223,108440.0,108430.0,0.00047415]
[1756688777544,0.71266223,108440.0,108430.0,0.00147415]
[1756688777728,1.05266223,108440.0,108430.0,0.04397672]
[1756688777964,1.05266223,108440.0,108430.0,0.00047415]
[1756688778080,1.05266223,108440.0,108430.0,0.04312093]
[1756688778281,1.05266223,108440.0,108430.0,0.00147415]
[1756688778707,1.10919105,108440.0,108430.0,0.00147415]
[1756688778927,1.10919105,108440.0,108430.0,0.00047415]
[1756688779372,1.11019105,108440.0,108430.0,0.00047415]
[1756688780004,1.05366223,108440.0,108430.0,0.00047415]
[1756688780234,0.89650223,108440.0,108430.0,0.00047415]
[1756688780435,1.05366223,108440.0,108430.0,0.00047415]
[1756688782124,0.89650223,108440.0,108430.0,0.00047415]
[1756688782364,1.05366223,108440.0,108430.0,0.00047415]
[1756688782898,0.89650223,108440.0,108430.0,0.00047415]
[1756688783101,1.05366223,108440.0,108430.0,0.00047415]
[1756688784111,1.08138423,108440.0,108430.0,0.00047415]
[1756688784764,1.09069771,108440.0,108430.0,0.00047415]
[1756688786022,1.17899403,108440.0,108430.0,0.00047415]
[1756688787596,1.09029771,108440.0,108430.0,0.00047415]
[1756688789052,1.18327772,108440.0,108430.0,0.00047415]
[1756688789258,1.59897735,108440.0,108430.0,0.00047415]
[1756688789650,1.44181735,108440.0,108430.0,0.00047415]
[1756688789866,1.59897735,108440.0,108430.0,0.00047415]
[1756688790404,1.09703772,108440.0,108430.0,0.00047415]